bitfinex/quotes_SOLUSD_20250621
["timestamp","ask_amount","ask_price","bid_price","bid_amount"]
[1750538810513,35.15026864,138.59,138.55,16.36778747]
[1750538810821,0.74,138.58,138.55,16.36778747]
[1750538811118,35.15026864,138.59,138.55,16.36778747]
[1750538811495,0.74,138.58,138.54,9.15026864]
[1750538812113,35.15026864,138.59,138.54,9.15026864]
[1750538812296,0.74,138.58,138.54,9.15026864]
[1750538813096,26.0,138.59,138.56,9.15026864]
[1750538813291,26.74,138.59,138.56,9.15026864]
[1750538814447,26.74,138.59,138.56,16.36720317]
[1750538815524,174.74,138.59,138.56,16.36720317]
[1750538815703,0.74,138.58,138.55,9.15026864]
[1750538816639,0.74,138.58,138.56,7.21709006]
[1750538819508,174.74,138.59,138.56,7.21709006]
[1750538821317,148.0,138.59,138.57,9.15026864]
[1750538821731,148.0,138.59,138.58,9.15026864]
[1750538821958,148.0,138.59,138.58,9.84026864]
[1750538822416,0.9769996,138.6,138.58,9.84026864]
[1750538822625,0.9769996,138.6,138.59,9.84026864]
[1750538823212,0.9769996,138.6,138.59,9.15026864]
[1750538823409,0.9769996,138.6,138.59,16.36579645]
[1750538823637,0.9769996,138.6,138.59,7.21552781]
[1750538823836,0.9769996,138.6,138.59,16.36579645]
[1750538824041,0.9769996,138.6,138.59,17.05579645]
[1750538825041,0.9769996,138.6,138.59,16.36579645]
[1750538825551,0.9769996,138.6,138.59,17.05579645]
[1750538826227,0.9769996,138.6,138.59,16.36579645]
[1750538826942,0.74,138.59,138.53,19.67804865]
[1750538827123,0.74,138.59,138.54,16.36840058]
[1750538827124,9.15026864,138.59,138.54,16.36840058]
[1750538827324,0.74,138.58,138.54,16.36840058]
[1750538827531,9.89026864,138.56,138.52,7.21917412]
[1750538827712,0.74,138.56,138.52,16.36944276]
[1750538827909,0.74,138.56,138.53,9.15026864]
[1750538828126,0.74,138.56,138.53,7.21839985]
[1750538829482,0.74,138.55,138.53,7.21839985]
[1750538830038,0.74,138.55,138.52,7.21902934]
[1750538830349,0.74,138.54,138.52,7.21902934]
[1750538831049,0.74,138.54,138.51,7.21969532]
[1750538833044,0.74,138.54,138.51,16.36996396]
[1750538833243,5.35225515,138.55,138.52,9.15026864]
[1750538833450,5.35225515,138.55,138.51,7.21969532]
[1750538833652,5.35225515,138.55,138.52,9.15026864]
[1750538834255,5.35225515,138.55,138.52,16.36900712]
[1750538834836,6.04225515,138.55,138.52,16.36900712]
[1750538835154,6.04225515,138.55,138.52,7.21873848]
[1750538835359,5.35225515,138.54,138.52,7.21873848]
[1750538836761,0.69,138.54,138.52,7.21873848]
[1750538836927,6.04225515,138.54,138.52,7.21873848]
[1750538837128,9.84026864,138.53,138.48,7.22125938]
[1750538837448,9.84026864,138.51,138.45,2.2262]
[1750538837650,0.69,138.49,138.45,7.22282412]
[1750538837850,0.69,138.48,138.45,7.22282412]
[1750538838054,6.07375034,138.47,138.44,16.37348549]
[1750538838237,6.07709204,138.46,138.43,7.22365707]
[1750538838755,14.53788687,138.46,138.41,7.22491149]
[1750538838960,14.53788687,138.46,138.42,16.37419876]
[1750538838961,0.69,138.45,138.42,16.37419876]
[1750538839155,6.07761823,138.45,138.42,16.37419876]
[1750538839531,0.69,138.45,138.42,16.37419876]
[1750538840253,6.07761823,138.45,138.42,16.37419876]
[1750538840443,0.69,138.45,138.42,16.37419876]
[1750538841433,9.84026864,138.44,138.38,7.22647781]
[1750538841642,9.84026864,138.44,138.4,9.15026864]
[1750538841643,0.69,138.43,138.4,9.15026864]
[1750538842757,0.69,138.43,138.4,16.37545581]
[1750538843467,0.69,138.43,138.4,9.15026864]
[1750538843634,9.15026864,138.42,138.38,9.15026864]
[1750538843834,0.69,138.41,138.38,9.15026864]
[1750538844355,0.69,138.41,138.37,9.15026864]
[1750538844534,0.69,138.41,138.38,9.15026864]
[1750538844739,9.84026864,138.41,138.37,7.22700007]
[1750538845241,0.69,138.4,138.37,7.22700007]
[1750538845443,0.69,138.41,138.37,16.37726871]
[1750538846538,0.69,138.41,138.38,9.15026864]
[1750538846981,0.69,138.41,138.37,7.22700007]
[1750538846982,148.0,138.42,138.39,16.37622427]
[1750538847137,148.0,138.42,138.39,7.22595563]
[1750538847477,148.0,138.42,138.38,7.22630636]
[1750538847777,148.69,138.42,138.38,16.376575]
[1750538847933,148.69,138.42,138.38,7.22630636]
[1750538848138,148.69,138.42,138.38,16.376575]
[1750538849280,0.69,138.41,138.38,9.15026864]
[1750538849567,9.84026864,138.41,138.37,16.377122]
[1750538849774,9.84026864,138.41,138.36,13.58736017]
[1750538849951,9.15026864,138.4,138.36,22.73762881]
[1750538850155,0.69,138.39,138.36,16.37762881]
[1750538850455,0.69,138.39,138.36,7.22736017]
[1750538850637,26.69,138.39,138.36,16.37762881]
[1750538851778,26.69,138.39,138.36,7.22736017]
[1750538852107,35.15026864,138.39,138.35,16.37814182]
[1750538852279,0.69,138.38,138.35,16.37814182]
[1750538852668,174.0,138.39,138.35,16.37814182]
[1750538852867,174.69,138.39,138.35,16.37814182]
[1750538853066,174.0,138.39,138.37,9.15026864]
[1750538853273,174.0,138.39,138.36,9.15026864]
[1750538854470,174.69,138.39,138.36,9.15026864]
[1750538854974,174.69,138.39,138.36,16.37731653]
[1750538855377,174.69,138.39,138.36,7.22704789]
[1750538855581,174.69,138.39,138.36,16.37731653]
[1750538856064,0.69,138.38,138.35,16.37812991]
[1750538856479,183.15026864,138.39,138.35,16.37812991]
[1750538856771,0.69,138.38,138.35,16.37812991]
[1750538857970,183.15026864,138.39,138.35,16.37812991]
[1750538857971,174.0,138.39,138.37,9.15026864]
[1750538858167,174.0,138.39,138.38,9.15026864]
[1750538858403,174.0,138.39,138.37,9.15026864]
[1750538858581,174.0,138.39,138.36,9.15026864]
[1750538858786,174.69,138.39,138.36,9.15026864]
[1750538859498,174.69,138.39,138.36,16.37731095]
[1750538860092,0.69,138.37,138.34,16.37868404]
[1750538860674,9.15026864,138.38,138.34,16.37868404]
[1750538860870,9.15026864,138.38,138.32,16.37966025]
[1750538860871,9.84026864,138.36,138.32,16.37966025]
[1750538861079,9.15026864,138.36,138.31,9.15026864]
[1750538861291,1.37,138.35,138.31,9.15026864]
[1750538861493,1.37,138.35,138.31,16.37997842]
[1750538862475,1.37,138.35,138.32,9.15026864]
[1750538863075,1.37,138.35,138.32,16.37962617]
[1750538863271,0.69,138.35,138.32,7.22935753]
[1750538863474,1.37,138.35,138.32,16.37962617]
[1750538864404,1.37,138.35,138.32,9.15026864]
[1750538864904,0.69,138.35,138.34,9.15026864]
[1750538865201,0.69,138.35,138.34,9.85026864]
[1750538865998,0.69,138.35,138.34,28.4999175]
[1750538866181,7.04,138.45,138.34,28.4999175]
[1750538866492,26.0,138.42,138.41,9.15026864]
[1750538866979,15.51026864,138.45,138.41,9.15026864]
[1750538867191,26.0,138.42,138.41,9.15026864]
[1750538868013,26.0,138.42,138.37,0.7]
[1750538868214,26.0,138.42,138.41,9.15026864]
[1750538868990,26.0,138.42,138.41,7.22491149]
[1750538869704,26.0,138.42,138.4,16.37548464]
[1750538870023,26.0,138.42,138.41,9.15026864]
[1750538870403,26.0,138.43,138.42,7.22438953]
[1750538870704,26.0,138.43,138.42,16.37465817]
[1750538870903,26.0,138.43,138.42,9.15026864]
[1750538871604,0.68,138.41,138.38,9.15026864]
[1750538872119,0.68,138.41,138.38,16.37633669]
[1750538872623,0.68,138.4,138.37,16.37709574]
[1750538872807,148.68,138.4,138.37,16.37709574]
[1750538873386,0.68,138.39,138.37,16.37709574]
[1750538873587,26.68,138.37,138.33,9.15026864]
[1750538873793,26.0,138.37,138.33,9.15026864]
[1750538874002,26.0,138.37,138.34,9.15026864]
[1750538874635,26.0,138.37,138.34,16.37867584]
[1750538875420,26.0,138.36,138.35,9.15026864]
[1750538876440,148.0,138.38,138.35,9.15026864]
[1750538876747,148.0,138.38,138.35,16.37798887]
[1750538877354,148.0,138.38,138.36,9.15026864]
[1750538877721,148.0,138.38,138.35,16.37798887]
[1750538879538,5.37512497,138.37,138.35,16.37798887]
[1750538879739,148.68,138.38,138.35,16.37798887]
[1750538879941,5.37539491,138.37,138.35,16.37798887]
[1750538880252,148.68,138.38,138.35,16.37798887]
[1750538880422,5.37530815,138.37,138.35,16.37798887]
[1750538880622,148.0,138.38,138.37,7.22700007]
[1750538880927,153.38077499,138.38,138.36,9.15026864]
[1750538881139,5.38077499,138.37,138.36,9.15026864]
[1750538881523,5.38077499,138.37,138.36,16.37759862]
[1750538881723,5.38077499,138.37,138.36,7.22732998]
[1750538882541,5.38077499,138.37,138.36,16.37759862]
[1750538883850,5.38077499,138.37,138.35,9.15026864]
[1750538884037,5.38077499,138.36,138.35,9.15026864]
[1750538884240,6.06077499,138.36,138.31,18.77518907]
[1750538884430,6.06077499,138.35,138.32,16.37988113]
[1750538884631,5.38077499,138.34,138.32,16.37988113]
[1750538884833,0.68,138.35,138.32,16.37988113]
[1750538885034,5.39631813,138.34,138.32,16.37988113]
[1750538885252,5.39631813,138.33,138.32,7.22961249]
[1750538885729,0.68,138.35,138.32,7.22961249]
[1750538885930,5.39718575,138.34,138.32,7.22961249]
[1750538886129,5.39718575,138.33,138.32,7.22961249]
[1750538886556,5.39754739,138.33,138.32,7.22961249]
[1750538887236,5.39754739,138.33,138.32,16.37988113]
[1750538887536,157.83026864,138.36,138.32,16.37988113]
[1750538887859,5.39745558,138.35,138.34,9.15026864]
[1750538888235,5.39745558,138.37,138.34,9.85026864]
[1750538888429,148.0,138.39,138.36,9.15026864]
[1750538888737,5.39643117,138.38,138.37,7.22700007]
[1750538888940,5.39643117,138.38,138.37,16.37726871]
[1750538889145,5.39643117,138.38,138.37,17.07726871]
[1750538889455,5.39643117,138.38,138.37,16.37726871]
[1750538889869,41.88765163,138.42,138.37,16.37726871]
[1750538890070,6.07713513,138.41,138.38,9.15026864]
[1750538890382,5.39713513,138.4,138.37,16.37726871]
[1750538890550,5.39713513,138.39,138.37,16.37726871]
[1750538890753,0.68,138.41,138.37,16.37726871]
[1750538890953,5.39748488,138.4,138.37,16.37726871]
[1750538891154,5.39748488,138.39,138.37,16.37726871]
[1750538891393,0.68,138.41,138.37,16.37726871]
[1750538891681,5.39774109,138.4,138.37,16.37726871]
[1750538891979,5.39774109,138.39,138.37,16.37726871]
[1750538892278,0.68,138.41,138.37,16.37726871]
[1750538892476,5.39768681,138.4,138.38,9.15026864]
[1750538892773,0.68,138.41,138.38,16.37652081]
[1750538892971,5.397879,138.4,138.38,9.15026864]
[1750538893179,148.0,138.41,138.38,16.3767286]
[1750538893475,5.39790087,138.4,138.38,16.3767286]
[1750538893657,148.73,138.41,138.38,16.3767286]
[1750538893858,5.39817711,138.4,138.38,16.3767286]
[1750538894055,5.398303,138.39,138.35,7.22804481]
[1750538894367,0.73,138.4,138.36,9.15026864]
[1750538894673,6.1288539,138.39,138.36,9.15026864]
[1750538894876,6.1288539,138.39,138.37,7.22700007]
[1750538894877,5.3988539,138.38,138.37,7.22700007]
[1750538895391,157.15026864,138.41,138.37,16.37726871]
[1750538895574,6.12880975,138.4,138.37,16.37726871]
[1750538895880,148.0,138.41,138.38,9.15026864]
[1750538896061,5.39827068,138.4,138.38,9.15026864]
[1750538896361,148.0,138.41,138.38,9.15026864]
[1750538896563,5.3982714,138.4,138.38,9.15026864]
[1750538896894,148.0,138.41,138.38,16.37639773]
[1750538897092,5.39818083,138.4,138.38,16.37639773]
[1750538897298,148.73,138.41,138.38,16.37639773]
[1750538897489,5.39818083,138.4,138.38,16.37639773]
[1750538897688,148.73,138.41,138.38,16.37639773]
[1750538897893,5.39806786,138.4,138.38,16.37639773]
[1750538898193,148.73,138.41,138.38,16.37639773]
[1750538898493,5.39806786,138.4,138.38,16.37639773]
[1750538898798,148.73,138.41,138.38,16.37639773]
[1750538899102,5.3980202,138.4,138.38,16.37639773]
[1750538899274,148.73,138.41,138.38,16.37639773]
[1750538899475,5.3980202,138.4,138.38,16.37639773]
[1750538899774,148.73,138.41,138.38,16.37639773]
[1750538900097,148.73,138.41,138.34,18.7708886]
[1750538900098,6.12789662,138.4,138.37,9.15026864]
[1750538900276,5.39789662,138.39,138.37,9.15026864]
[1750538900476,5.39789662,138.4,138.37,9.15026864]
[1750538900695,5.39789662,138.39,138.37,9.15026864]
[1750538900905,5.39789662,138.4,138.38,9.15026864]
[1750538901102,148.0,138.41,138.38,9.15026864]
[1750538901279,5.39799046,138.4,138.38,9.15026864]
[1750538901585,148.0,138.41,138.39,9.15026864]
[1750538901764,5.39788993,138.4,138.39,9.15026864]
[1750538902493,5.39788993,138.4,138.39,16.37622427]
[1750538902670,5.39724113,138.4,138.39,16.37622427]
[1750538903071,148.0,138.41,138.39,16.37622427]
[1750538904402,148.0,138.41,138.39,9.15026864]
[1750538904587,5.39712701,138.4,138.39,16.37622427]
[1750538905091,6.12712701,138.4,138.38,7.22630605]
[1750538905292,148.0,138.41,138.38,7.22630605]
[1750538905615,5.39702289,138.4,138.38,16.37657469]
[1750538905802,148.0,138.41,138.38,16.37657469]
[1750538905986,5.39696209,138.4,138.38,16.37657469]
[1750538906187,148.0,138.41,138.38,16.37657469]
[1750538906388,5.3970153,138.4,138.38,16.37657469]
[1750538906598,148.73,138.41,138.38,16.37657469]
[1750538906795,5.39752167,138.4,138.38,16.37657469]
[1750538907113,0.73,138.4,138.37,16.37684155]
[1750538909412,5.3996275,138.39,138.37,7.22657291]
[1750538909597,0.73,138.39,138.37,7.22657291]
[1750538909916,5.40112854,138.38,138.37,7.22657291]
[1750538910096,5.40108214,138.38,138.37,7.22657291]
[1750538911509,157.15026864,138.41,138.37,16.37684155]
[1750538911712,154.13130032,138.4,138.37,16.37684155]
[1750538911916,5.40130032,138.39,138.37,16.37684155]
[1750538912085,148.73,138.4,138.37,16.37684155]
[1750538912291,5.40130105,138.39,138.37,16.37684155]
[1750538912516,148.73,138.4,138.37,16.37684155]
[1750538912717,5.40180267,138.39,138.37,16.37684155]
[1750538912927,148.73,138.4,138.37,16.37684155]
[1750538913133,148.0,138.4,138.39,9.15026864]
[1750538913423,153.40167242,138.4,138.38,9.15026864]
[1750538913619,148.0,138.4,138.38,9.15026864]
[1750538914631,5.4027897,138.39,138.38,16.37674645]
[1750538914934,148.0,138.4,138.38,16.37674645]
[1750538916311,0.73,138.35,138.29,7.23118085]
[1750538916508,15.28409267,138.34,138.29,16.38144949]
[1750538916817,9.88026864,138.34,138.29,16.38144949]
[1750538916990,35.88026864,138.36,138.31,9.15026864]
[1750538917198,5.40536501,138.35,138.31,9.15026864]
[1750538917502,5.40536501,138.34,138.31,9.15026864]
[1750538917706,5.40536501,138.33,138.31,9.15026864]
[1750538917907,9.15026864,138.35,138.3,9.15026864]
[1750538918127,6.13461463,138.34,138.3,9.15026864]
[1750538918326,5.40461463,138.33,138.3,9.15026864]
[1750538918622,0.73,138.34,138.3,16.38058087]
[1750538918817,5.40292118,138.33,138.3,16.38058087]
[1750538918998,0.73,138.34,138.3,16.38058087]
[1750538919200,5.40292118,138.33,138.3,16.38058087]
[1750538919502,5.40163408,138.33,138.31,9.15026864]
[1750538919720,5.40101782,138.35,138.32,9.87026864]
[1750538920235,5.40101782,138.35,138.33,9.15026864]
[1750538920538,26.0,138.38,138.35,7.22804481]
[1750538920738,5.39995327,138.37,138.35,16.37831345]
[1750538921029,183.88026864,138.39,138.35,7.22804481]
[1750538921238,183.88026864,138.39,138.34,16.37866586]
[1750538921239,5.39981304,138.38,138.34,16.37866586]
[1750538921439,5.39981304,138.37,138.34,16.37866586]
[1750538921647,148.0,138.39,138.36,9.85026864]
[1750538921939,6.7577548,138.43,138.38,9.15026864]
[1750538922110,5.39849774,138.42,138.4,9.15026864]
[1750538922307,5.39849774,138.41,138.39,9.15026864]
[1750538922534,5.39849774,138.4,138.39,16.37622427]
[1750538922814,5.39836462,138.42,138.39,16.37622427]
[1750538923025,5.39836462,138.41,138.39,16.37622427]
[1750538923336,35.15026864,138.43,138.39,16.37622427]
[1750538923539,6.0780367,138.42,138.39,7.22595563]
[1750538923732,5.3980367,138.41,138.39,7.22595563]
[1750538923911,0.68,138.42,138.39,7.22595563]
[1750538924117,5.39763255,138.41,138.39,7.22595563]
[1750538924326,0.68,138.42,138.39,7.22595563]
[1750538924635,0.68,138.4,138.36,16.37779104]
[1750538924839,28.4799175,138.42,138.37,9.15026864]
[1750538925032,5.39774415,138.41,138.38,9.15026864]
[1750538925229,5.39774415,138.4,138.38,9.15026864]
[1750538925426,5.39774415,138.41,138.38,9.15026864]
[1750538925619,5.39774415,138.4,138.37,9.15026864]
[1750538925943,0.68,138.41,138.38,7.22647781]
[1750538926143,5.39794236,138.4,138.38,7.22647781]
[1750538927226,0.68,138.41,138.38,7.22647781]
[1750538927433,5.39777693,138.4,138.38,7.22647781]
[1750538927620,5.39746695,138.4,138.38,7.22647781]
[1750538928650,0.68,138.41,138.38,7.22647781]
[1750538928867,5.39756086,138.4,138.38,7.22647781]
[1750538929151,0.68,138.41,138.38,7.22647781]
[1750538929322,5.39756086,138.4,138.38,7.22647781]
[1750538929521,0.68,138.41,138.38,7.22647781]
[1750538929751,5.39794428,138.4,138.38,7.22647781]
[1750538929937,9.83026864,138.41,138.38,7.22647781]
[1750538930137,5.39784816,138.4,138.38,7.22647781]
[1750538930523,9.83026864,138.4,138.36,7.2275224]
[1750538930719,5.39898912,138.39,138.37,9.15026864]
[1750538931332,5.39874534,138.41,138.37,9.15026864]
[1750538931533,5.39874534,138.4,138.37,9.15026864]
[1750538931733,9.83026864,138.42,138.37,9.15026864]
[1750538931943,5.39962927,138.41,138.38,16.37674645]
[1750538932251,5.39962927,138.4,138.38,16.37674645]
[1750538932459,9.83026864,138.42,138.38,16.37674645]
[1750538932650,5.40095161,138.41,138.38,16.37674645]
[1750538932831,5.40095161,138.4,138.38,16.37674645]
[1750538933153,9.83026864,138.42,138.38,16.37674645]
[1750538933354,5.40082241,138.41,138.38,16.37674645]
[1750538933552,5.40082241,138.4,138.38,16.37674645]
[1750538933853,9.83026864,138.42,138.38,16.37674645]
[1750538934055,5.40098143,138.41,138.38,16.37674645]
[1750538934345,5.40098143,138.4,138.38,16.37674645]
[1750538934551,9.83026864,138.42,138.38,16.37674645]
[1750538934757,6.08084294,138.41,138.38,16.37674645]
[1750538934958,5.40084294,138.4,138.38,16.37674645]
[1750538935153,0.68,138.41,138.38,16.37674645]
[1750538935366,5.40097359,138.4,138.38,16.37674645]
[1750538935539,0.68,138.41,138.38,16.37674645]
[1750538935735,5.40092114,138.4,138.38,16.37674645]
[1750538935936,0.68,138.41,138.38,16.37674645]
[1750538936136,5.40072734,138.4,138.38,16.37674645]
[1750538936344,0.68,138.41,138.38,16.37674645]
[1750538936563,5.4006149,138.4,138.38,16.37674645]
[1750538936770,0.68,138.41,138.38,16.37674645]
[1750538936934,5.40071107,138.4,138.38,16.37674645]
[1750538937139,0.68,138.41,138.38,16.37674645]
[1750538937355,5.40067877,138.4,138.38,16.37674645]
[1750538937557,0.68,138.41,138.38,16.37674645]
[1750538937864,5.40059275,138.4,138.38,16.37674645]
[1750538938066,35.83026864,138.43,138.38,16.37674645]
[1750538938253,15.23068565,138.42,138.38,16.37674645]
[1750538938471,5.40041701,138.41,138.38,16.37674645]
[1750538938647,5.40041701,138.4,138.38,16.37674645]
[1750538938844,9.15026864,138.42,138.38,16.37674645]
[1750538939047,9.83026864,138.4,138.37,7.22679489]
[1750538939261,5.40052154,138.39,138.37,7.22679489]
[1750538939460,9.83026864,138.4,138.37,7.22679489]
[1750538939671,5.40088178,138.39,138.37,7.22679489]
[1750538939848,0.68,138.4,138.37,7.22679489]
[1750538940045,5.40089195,138.39,138.37,7.22679489]
[1750538940263,0.68,138.4,138.37,7.22679489]
[1750538940465,5.40089267,138.39,138.37,7.22679489]
[1750538940669,0.68,138.4,138.37,7.22679489]
[1750538940856,0.68,138.4,138.32,7.22961249]
[1750538940857,0.68,138.37,138.32,7.22961249]
[1750538941056,9.15026864,138.35,138.32,7.22961249]
[1750538941370,9.83026864,138.35,138.31,17.91328207]
[1750538941674,9.83026864,138.35,138.31,16.38018207]
[1750538942452,9.15026864,138.35,138.31,17.08018207]
[1750538942967,9.15026864,138.36,138.31,17.08018207]
[1750538943168,5.40084465,138.35,138.31,17.08018207]
[1750538943351,9.15026864,138.36,138.31,17.08018207]
[1750538943552,5.4005968,138.35,138.31,17.08018207]
[1750538943859,9.15026864,138.36,138.31,17.08018207]
[1750538944177,5.39967579,138.35,138.31,17.08018207]
[1750538944348,9.15026864,138.36,138.31,17.08018207]
[1750538944545,5.39935312,138.35,138.31,17.08018207]
[1750538944755,9.15026864,138.36,138.31,17.08018207]
[1750538944964,5.39859466,138.35,138.31,17.08018207]
[1750538945163,9.15026864,138.36,138.31,17.08018207]
[1750538945364,5.39859466,138.35,138.31,17.08018207]
[1750538945567,14.54854131,138.35,138.31,17.08018207]
[1750538945766,5.39827267,138.35,138.33,9.15026864]
[1750538945964,35.83026864,138.37,138.33,9.15026864]
[1750538946170,5.39729795,138.36,138.33,9.15026864]
[1750538946876,5.39729795,138.36,138.34,7.22856729]
[1750538947256,35.83026864,138.37,138.34,7.22856729]
[1750538948075,15.22695886,138.36,138.32,16.37988113]
[1750538948251,6.07695921,138.35,138.32,16.37988113]
[1750538948451,9.83026864,138.35,138.32,7.22961249]
[1750538948867,6.07685143,138.35,138.32,7.22961249]
[1750538949783,0.68,138.35,138.32,7.22961249]
[1750538950094,15.22625426,138.36,138.31,25.3054732]
[1750538950400,15.22625426,138.36,138.32,9.15026864]
[1750538951270,5.39598562,138.36,138.33,16.37935849]
[1750538951569,5.39598562,138.36,138.34,9.15026864]
[1750538952669,5.39598562,138.36,138.33,16.37935849]
[1750538952966,5.39598562,138.37,138.33,16.37935849]
[1750538953297,5.39598562,138.36,138.33,16.37935849]
[1750538953595,5.39598562,138.37,138.33,16.37935849]
[1750538953781,5.39598562,138.36,138.33,16.37935849]
[1750538953980,5.39598562,138.37,138.33,16.37935849]
[1750538954184,9.15026864,138.38,138.33,16.37935849]
[1750538954390,6.10480065,138.37,138.33,16.37935849]
[1750538955293,0.71,138.37,138.33,16.37935849]
[1750538955877,0.71,138.37,138.33,7.22908985]
[1750538955878,15.25502809,138.37,138.33,7.22908985]
[1750538956078,6.10475945,138.36,138.33,7.22908985]
[1750538956394,14.54502809,138.36,138.33,7.22908985]
[1750538956695,9.86026864,138.36,138.33,7.22908985]
[1750538956904,15.25502809,138.36,138.33,7.22908985]
[1750538957069,9.86026864,138.36,138.33,7.22908985]
[1750538957471,15.25502809,138.36,138.33,7.22908985]
[1750538957687,9.86026864,138.36,138.33,7.22908985]
[1750538958085,15.25502809,138.36,138.33,7.22908985]
[1750538958394,0.71,138.33,138.31,7.22979744]
[1750538958693,9.86026864,138.33,138.31,7.22979744]
[1750538959272,9.86026864,138.33,138.3,7.23065798]
[1750538960595,14.54502809,138.34,138.3,16.38092662]
[1750538960805,5.39475945,138.34,138.32,9.15026864]
[1750538961033,40.54502809,138.36,138.32,9.15026864]
[1750538961180,40.54502809,138.36,138.31,9.15026864]
[1750538961499,35.86026864,138.36,138.32,7.22961249]
[1750538961672,41.25502809,138.36,138.32,7.22961249]
[1750538961873,35.86026864,138.36,138.32,7.22961249]
[1750538962097,41.25502809,138.36,138.32,7.22961249]
[1750538962297,0.71,138.35,138.32,7.22961249]
[1750538962488,9.86026864,138.33,138.29,15.53026864]
[1750538962685,9.15026864,138.33,138.3,7.23043559]
[1750538962886,15.25502809,138.35,138.3,35.1773492]
[1750538965499,9.15026864,138.34,138.3,35.1773492]
[1750538966024,14.54502809,138.35,138.31,9.87026864]
[1750538966203,9.15026864,138.35,138.31,9.87026864]
[1750538966402,9.15026864,138.34,138.3,34.4573492]
[1750538966618,9.86026864,138.34,138.3,34.4573492]
[1750538967224,9.86026864,138.34,138.3,25.30708056]
[1750538967406,9.86026864,138.34,138.3,34.4573492]
[1750538968802,9.86026864,138.34,138.3,35.1773492]
[1750538968803,9.15026864,138.34,138.3,35.1773492]
[1750538969003,14.54502809,138.35,138.3,35.1773492]
[1750538969520,14.54502809,138.35,138.31,9.15026864]
[1750538969719,9.15026864,138.34,138.3,35.1773492]
[1750538969923,9.15026864,138.34,138.3,7.23043559]
[1750538970124,9.86026864,138.34,138.3,16.38070423]
[1750538970408,15.25502809,138.34,138.3,17.10070423]
[1750538970617,9.86026864,138.34,138.3,17.10070423]
[1750538970816,15.25502809,138.34,138.3,17.10070423]
[1750538971109,9.86026864,138.34,138.3,16.38070423]
[1750538971428,15.25502809,138.34,138.3,16.38070423]
[1750538971629,9.86026864,138.34,138.3,16.38070423]
[1750538971820,15.25502809,138.34,138.3,16.38070423]
[1750538972021,0.71,138.33,138.3,7.23043559]
[1750538972206,9.86026864,138.32,138.3,7.23043559]
[1750538972649,0.71,138.32,138.3,7.23043559]
[1750538977029,40.54735962,138.33,138.3,7.23043559]
[1750538977343,35.86026864,138.33,138.3,7.23043559]
[1750538977527,41.25735962,138.33,138.3,7.23043559]
[1750538977845,35.86026864,138.33,138.3,7.23043559]
[1750538978713,41.25831728,138.33,138.3,7.23043559]
[1750538978930,35.86026864,138.33,138.3,7.23043559]
[1750538979417,21.23565841,138.4,138.31,9.15026864]
[1750538979418,15.25923091,138.35,138.31,9.15026864]
[1750538979642,0.71,138.34,138.31,9.15026864]
[1750538979850,0.71,138.34,138.32,7.22961249]
[1750538980053,9.86026864,138.33,138.3,7.23065798]
[1750538980858,15.26122865,138.33,138.3,7.23065798]
[1750538981155,26.0,138.34,138.3,7.23065798]
[1750538981156,9.86026864,138.32,138.3,7.23065798]
[1750538981739,5.40485886,138.31,138.29,13.61099908]
[1750538981962,6.12485886,138.31,138.29,13.61099908]
[1750538982257,9.15026864,138.3,138.24,7.9779]
[1750538982430,9.15026864,138.27,138.24,13.593664]
[1750538982630,9.87026864,138.25,138.21,9.15026864]
[1750538982854,9.87026864,138.25,138.21,16.38563511]
[1750538983055,15.2793354,138.25,138.21,16.38563511]
[1750538983247,9.87026864,138.25,138.21,16.38563511]
[1750538983759,0.72,138.25,138.21,16.38563511]
[1750538983952,6.12191628,138.25,138.21,16.38563511]
[1750538984255,6.12191628,138.25,138.21,7.23536647]
[1750538984456,5.40191628,138.25,138.22,9.88026864]
[1750538984630,31.40191628,138.26,138.23,9.15026864]
[1750538984830,26.0,138.26,138.23,9.15026864]
[1750538985257,26.0,138.26,138.22,9.88026864]
[1750538985863,26.0,138.26,138.23,7.23431961]
[1750538986158,5.397351,138.27,138.25,9.15026864]
[1750538986339,26.72,138.28,138.25,9.15026864]
[1750538986540,41.26761964,138.28,138.24,9.15026864]
[1750538986848,35.87026864,138.28,138.24,9.15026864]
[1750538987242,0.72,138.27,138.24,9.15026864]
[1750538987464,9.87026864,138.27,138.23,16.38458825]
[1750538987672,9.87026864,138.25,138.21,7.23536647]
[1750538988084,9.87026864,138.25,138.21,16.38563511]
[1750538989790,9.15026864,138.25,138.21,16.38563511]
[1750538990081,26.0,138.23,138.21,7.23536647]
[1750538990781,26.0,138.23,138.19,7.23641363]